[Event "*** Titled Tuesday Blitz"]
[Site "Chess.com"]
[Date "2020.04.14"]
[Round "9"]
[White "Harsha_Bharathakoti"]
[Black "Tonychess32"]
[Result "1-0"]
[WhiteElo "2808"]
[BlackElo "2618"]
[TimeControl "180+1"]
[EndTime "11:43:54 PDT"]
[Termination "Harsha_Bharathakoti won by resignation"]

1. d4 {[%clk 0:02:59.7]} 1... Nf6 {[%clk 0:02:59.5]} 2. c4 {[%clk 0:02:58.3]}
2... e6 {[%clk 0:02:58.2]} 3. Nf3 {[%clk 0:02:57.5]} 3... Bb4+ {[%clk
0:02:58.3]} 4. Nbd2 {[%clk 0:02:57.6]} 4... O-O {[%clk 0:02:57.7]} 5. e3 {[%clk
0:02:58.1]} 5... d5 {[%clk 0:02:57]} 6. a3 {[%clk 0:02:57.7]} 6... Be7 {[%clk
0:02:56.7]} 7. b4 {[%clk 0:02:55]} 7... a5 {[%clk 0:02:54.1]} 8. b5 {[%clk
0:02:55.5]} 8... c6 {[%clk 0:02:53.4]} 9. bxc6 {[%clk 0:02:56.4]} 9... bxc6
{[%clk 0:02:52.6]} 10. Bb2 {[%clk 0:02:51.1]} 10... Ba6 {[%clk 0:02:44.7]} 11.
Be2 {[%clk 0:02:47.8]} 11... c5 {[%clk 0:02:42.4]} 12. O-O {[%clk 0:02:47.2]}
12... cxd4 {[%clk 0:02:41.5]} 13. Nxd4 {[%clk 0:02:48.1]} 13... dxc4 {[%clk
0:02:33.8]} 14. Nxc4 {[%clk 0:02:48.3]} 14... Bxc4 {[%clk 0:02:14.7]} 15. Bxc4
{[%clk 0:02:49.2]} 15... Ra7 {[%clk 0:01:54.2]} 16. Qe2 {[%clk 0:02:37.5]} 16...
Rd7 {[%clk 0:01:53]} 17. Rab1 {[%clk 0:02:06.8]} 17... Nd5 {[%clk 0:01:47.8]}
18. Nf3 {[%clk 0:01:50.5]} 18... Bf6 {[%clk 0:01:40.1]} 19. Ne5 {[%clk 0:01:51]}
19... Bxe5 {[%clk 0:01:39.3]} 20. Bxe5 {[%clk 0:01:51.9]} 20... Nc6 {[%clk
0:01:39.8]} 21. Ba1 {[%clk 0:01:51.8]} 21... Nce7 {[%clk 0:01:17.3]} 22. Bb5
{[%clk 0:01:35.6]} 22... Rb7 {[%clk 0:01:05.1]} 23. Bd3 {[%clk 0:01:29.8]} 23...
Rxb1 {[%clk 0:01:02.2]} 24. Rxb1 {[%clk 0:01:30.7]} 24... Qd6 {[%clk 0:01:01.4]}
25. a4 {[%clk 0:01:21.5]} 25... Nb4 {[%clk 0:00:58.4]} 26. Be4 {[%clk
0:01:05.5]} 26... Rd8 {[%clk 0:00:54.4]} 27. g3 {[%clk 0:01:00.4]} 27... Ned5
{[%clk 0:00:46.4]} 28. Rc1 {[%clk 0:00:50.8]} 28... f6 {[%clk 0:00:44.8]} 29.
Bd4 {[%clk 0:00:43]} 29... Qd7 {[%clk 0:00:44.5]} 30. Qb5 {[%clk 0:00:17]} 30...
Qxb5 {[%clk 0:00:44.6]} 31. axb5 {[%clk 0:00:17.9]} 31... a4 {[%clk 0:00:44.8]}
32. Ra1 {[%clk 0:00:15.5]} 32... Rb8 {[%clk 0:00:28.4]} 33. Rxa4 {[%clk
0:00:15.1]} 33... Rxb5 {[%clk 0:00:27.4]} 34. Ra8+ {[%clk 0:00:15.6]} 34... Kf7
{[%clk 0:00:26.3]} 35. Bxh7 {[%clk 0:00:16.3]} 35... Nc6 {[%clk 0:00:19.1]} 36.
Bg8+ {[%clk 0:00:15]} 36... Kg6 {[%clk 0:00:18.2]} 37. Bxe6 {[%clk 0:00:14.7]}
37... Nc7 {[%clk 0:00:15.4]} 38. Rc8 {[%clk 0:00:04]} 38... Nxd4 {[%clk
0:00:15.7]} 39. Bf7+ {[%clk 0:00:03.1]} 39... Kxf7 {[%clk 0:00:15.4]} 40. Rxc7+
{[%clk 0:00:03.8]} 40... Kg6 {[%clk 0:00:13.7]} 41. exd4 {[%clk 0:00:04.7]}
41... Rd5 {[%clk 0:00:14]} 42. Rc4 {[%clk 0:00:05.2]} 42... Kf5 {[%clk
0:00:14.3]} 43. f3 {[%clk 0:00:05.8]} 43... Ke6 {[%clk 0:00:12.2]} 44. Kf2
{[%clk 0:00:06.2]} 44... Ra5 {[%clk 0:00:12.5]} 45. Ke3 {[%clk 0:00:06.9]} 45...
Ra2 {[%clk 0:00:12.6]} 46. h4 {[%clk 0:00:07.3]} 46... Ra3+ {[%clk 0:00:11.4]}
47. Ke4 {[%clk 0:00:06.9]} 47... f5+ {[%clk 0:00:09.4]} 48. Kf4 {[%clk
0:00:07.2]} 48... Rd3 {[%clk 0:00:07.9]} 49. h5 {[%clk 0:00:06.2]} 49... Kd5
{[%clk 0:00:06.8]} 50. Rc5+ {[%clk 0:00:06.2]} 50... Ke6 {[%clk 0:00:06.5]} 51.
Re5+ {[%clk 0:00:06.9]} 51... Kd6 {[%clk 0:00:06]} 52. Rxf5 {[%clk 0:00:07.6]}
52... Rxd4+ {[%clk 0:00:05.7]} 53. Kg5 {[%clk 0:00:08.3]} 53... Ke6 {[%clk
0:00:04.5]} 54. g4 {[%clk 0:00:08.8]} 54... Rd8 {[%clk 0:00:02.8]} 55. Kg6
{[%clk 0:00:09.4]} 55... Rd7 {[%clk 0:00:02.4]} 56. f4 {[%clk 0:00:09.5]} 56...
Rc7 {[%clk 0:00:02.6]} 57. Re5+ {[%clk 0:00:10]} 57... Kd6 {[%clk 0:00:02.6]}
58. Re4 {[%clk 0:00:09.4]} 58... Rb7 {[%clk 0:00:02.8]} 59. g5 {[%clk
0:00:09.1]} 59... Kd5 {[%clk 0:00:03.3]} 60. Re1 {[%clk 0:00:09.4]} 60... Rb4
{[%clk 0:00:02.9]} 61. f5 {[%clk 0:00:09.7]} 61... Re4 {[%clk 0:00:02.7]} 62.
Rxe4 {[%clk 0:00:09.5]} 1-0

[Event "*** Titled Tuesday Blitz"]
[Site "Chess.com"]
[Date "2020.04.14"]
[Round "9"]
[White "farzadbfd"]
[Black "SavelijTartakover"]
[Result "1-0"]
[WhiteElo "2751"]
[BlackElo "2597"]
[TimeControl "180+1"]
[EndTime "11:43:54 PDT"]
[Termination "farzadbfd won on time"]

1. e4 {[%clk 0:03:00.9]} 1... e6 {[%clk 0:02:57.2]} 2. d4 {[%clk 0:03:00.7]}
2... d5 {[%clk 0:02:57.2]} 3. exd5 {[%clk 0:03:01.6]} 3... exd5 {[%clk
0:02:56.6]} 4. Nf3 {[%clk 0:03:02.5]} 4... Nc6 {[%clk 0:02:55.4]} 5. Bd3 {[%clk
0:03:01.4]} 5... Bd6 {[%clk 0:02:53]} 6. O-O {[%clk 0:03:01]} 6... Nge7 {[%clk
0:02:53.3]} 7. h3 {[%clk 0:02:56.6]} 7... Bf5 {[%clk 0:02:52.3]} 8. Bxf5 {[%clk
0:02:55.6]} 8... Nxf5 {[%clk 0:02:51.9]} 9. Re1+ {[%clk 0:02:55.9]} 9... Nfe7
{[%clk 0:02:49]} 10. Nc3 {[%clk 0:02:56.1]} 10... O-O {[%clk 0:02:43.7]} 11. Nb5
{[%clk 0:02:56.2]} 11... Ng6 {[%clk 0:02:41.3]} 12. Nxd6 {[%clk 0:02:39.9]}
12... Qxd6 {[%clk 0:02:42.2]} 13. Qd3 {[%clk 0:02:30.6]} 13... Rfe8 {[%clk
0:02:36.9]} 14. Bd2 {[%clk 0:02:30.4]} 14... Nf4 {[%clk 0:02:24.4]} 15. Qb5
{[%clk 0:02:29.5]} 15... Ne6 {[%clk 0:02:06.9]} 16. c3 {[%clk 0:02:22.7]} 16...
a6 {[%clk 0:02:04.7]} 17. Qd3 {[%clk 0:02:19.3]} 17... h6 {[%clk 0:02:03.4]} 18.
Ne5 {[%clk 0:02:13.1]} 18... Nxe5 {[%clk 0:02:02.6]} 19. Rxe5 {[%clk 0:02:14]}
19... f6 {[%clk 0:01:58.2]} 20. Re2 {[%clk 0:02:07]} 20... Nf4 {[%clk
0:01:50.5]} 21. Bxf4 {[%clk 0:02:05.9]} 21... Qxf4 {[%clk 0:01:50]} 22. Rae1
{[%clk 0:02:06]} 22... Kf7 {[%clk 0:01:43.9]} 23. c4 {[%clk 0:01:40.6]} 23...
Qd6 {[%clk 0:01:39.4]} 24. c5 {[%clk 0:01:29.2]} 24... Qd7 {[%clk 0:01:36.9]}
25. Qb3 {[%clk 0:01:27.3]} 25... c6 {[%clk 0:01:35.3]} 26. Qf3 {[%clk 0:01:23]}
26... Rxe2 {[%clk 0:01:32]} 27. Rxe2 {[%clk 0:01:23.9]} 27... Re8 {[%clk
0:01:31]} 28. Rxe8 {[%clk 0:01:09.3]} 28... Kxe8 {[%clk 0:01:21.2]} 29. Qg3
{[%clk 0:01:04.2]} 29... Qe7 {[%clk 0:01:16.7]} 30. Qb8+ {[%clk 0:01:02.6]}
30... Kf7 {[%clk 0:01:16.5]} 31. Kh2 {[%clk 0:01:01.6]} 31... Kg6 {[%clk
0:00:59.7]} 32. f3 {[%clk 0:01:00.9]} 32... Qe3 {[%clk 0:00:47.1]} 33. Qg3+
{[%clk 0:00:45.8]} 33... Kh7 {[%clk 0:00:45.7]} 34. Qg4 {[%clk 0:00:45]} 34...
g5 {[%clk 0:00:38.7]} 35. h4 {[%clk 0:00:41.1]} 35... gxh4 {[%clk 0:00:19.5]}
36. Qd7+ {[%clk 0:00:40.7]} 36... Kg6 {[%clk 0:00:18.9]} 37. Qg4+ {[%clk
0:00:41.3]} 37... Kh7 {[%clk 0:00:18.9]} 38. Qxh4 {[%clk 0:00:41.2]} 38... Qg5
{[%clk 0:00:17.7]} 39. Kh3 {[%clk 0:00:40.5]} 39... Kg6 {[%clk 0:00:16.9]} 40.
Qg4 {[%clk 0:00:37.8]} 40... f5 {[%clk 0:00:13]} 41. Qg3 {[%clk 0:00:35]} 41...
f4 {[%clk 0:00:10.7]} 42. Qg4 {[%clk 0:00:35.2]} 42... Kf6 {[%clk 0:00:07]} 43.
b4 {[%clk 0:00:29.4]} 43... h5 {[%clk 0:00:04.8]} 44. Qh4 {[%clk 0:00:24]} 44...
Kg6 {[%clk 0:00:03.9]} 45. Qe1 {[%clk 0:00:22.8]} 45... Qf5+ {[%clk 0:00:03]}
46. Kh2 {[%clk 0:00:23.3]} 46... Qg5 {[%clk 0:00:02.2]} 47. Qe8+ {[%clk
0:00:23.2]} 47... Kg7 {[%clk 0:00:02.1]} 48. Qd7+ {[%clk 0:00:22.2]} 48... Kh6
{[%clk 0:00:02.3]} 49. Qe6+ {[%clk 0:00:22.5]} 49... Kg7 {[%clk 0:00:02.2]} 50.
Qh3 {[%clk 0:00:19.1]} 50... Kg6 {[%clk 0:00:01.7]} 51. a4 {[%clk 0:00:19.4]}
51... Kh6 {[%clk 0:00:01.5]} 52. Qe6+ {[%clk 0:00:19.5]} 52... Kg7 {[%clk
0:00:01.7]} 53. Qh3 {[%clk 0:00:19.7]} 53... Kh6 {[%clk 0:00:01.8]} 54. Kg1
{[%clk 0:00:20.2]} 54... Kg7 {[%clk 0:00:01.3]} 55. Kf1 {[%clk 0:00:20.6]} 55...
Kh6 {[%clk 0:00:01.3]} 56. Qe6+ {[%clk 0:00:20.4]} 56... Kg7 {[%clk 0:00:01.1]}
57. Qd7+ {[%clk 0:00:20.9]} 57... Kh6 {[%clk 0:00:01.2]} 58. Qxb7 {[%clk
0:00:21.5]} 58... Qf6 {[%clk 0:00:01.4]} 59. Qxa6 {[%clk 0:00:21.5]} 1-0

[Event "*** Titled Tuesday Blitz"]
[Site "Chess.com"]
[Date "2020.04.14"]
[Round "9"]
[White "trickytock"]
[Black "ketster"]
[Result "1-0"]
[WhiteElo "2515"]
[BlackElo "2292"]
[TimeControl "180+1"]
[EndTime "11:43:54 PDT"]
[Termination "trickytock won on time"]

1. e4 {[%clk 0:03:00.9]} 1... e5 {[%clk 0:02:59.4]} 2. Nf3 {[%clk 0:03:01.1]}
2... Nc6 {[%clk 0:02:59.6]} 3. Bb5 {[%clk 0:03:01.7]} 3... a6 {[%clk 0:02:59.7]}
4. Ba4 {[%clk 0:03:01.2]} 4... Nf6 {[%clk 0:02:59.7]} 5. O-O {[%clk 0:03:01.8]}
5... Bc5 {[%clk 0:02:58.6]} 6. c3 {[%clk 0:02:59.9]} 6... b5 {[%clk 0:02:55.1]}
7. Bb3 {[%clk 0:02:53.5]} 7... d6 {[%clk 0:02:37.7]} 8. a4 {[%clk 0:02:53.5]}
8... Bg4 {[%clk 0:02:35]} 9. h3 {[%clk 0:02:50.7]} 9... Bh5 {[%clk 0:02:31.9]}
10. g4 {[%clk 0:02:45.2]} 10... Bg6 {[%clk 0:02:21.3]} 11. d4 {[%clk 0:02:32.6]}
11... Bb6 {[%clk 0:02:09.5]} 12. Bg5 {[%clk 0:02:31]} 12... h6 {[%clk
0:01:59.5]} 13. Bh4 {[%clk 0:02:30.3]} 13... O-O {[%clk 0:01:51.9]} 14. Re1
{[%clk 0:02:22.2]} 14... Re8 {[%clk 0:01:46.6]} 15. Bd5 {[%clk 0:02:09.7]} 15...
Qd7 {[%clk 0:01:46.5]} 16. Bxf6 {[%clk 0:02:09.2]} 16... gxf6 {[%clk 0:01:46.2]}
17. axb5 {[%clk 0:02:09.1]} 17... axb5 {[%clk 0:01:44.9]} 18. Rxa8 {[%clk
0:02:09.3]} 18... Rxa8 {[%clk 0:01:45.8]} 19. Na3 {[%clk 0:02:07.3]} 19... b4
{[%clk 0:01:40.6]} 20. Nc4 {[%clk 0:02:05.4]} 20... bxc3 {[%clk 0:01:36.7]} 21.
bxc3 {[%clk 0:02:06.3]} 21... Rb8 {[%clk 0:01:32.8]} 22. Nxb6 {[%clk 0:02:03.1]}
22... Rxb6 {[%clk 0:01:32.1]} 23. Qa4 {[%clk 0:02:02.7]} 23... Nb8 {[%clk
0:01:24.6]} 24. Qxd7 {[%clk 0:01:57.8]} 24... Nxd7 {[%clk 0:01:24.8]} 25. Ra1
{[%clk 0:01:58.3]} 25... c6 {[%clk 0:01:20]} 26. Bc4 {[%clk 0:01:46.5]} 26...
Bxe4 {[%clk 0:01:18]} 27. Nh4 {[%clk 0:01:43.7]} 27... d5 {[%clk 0:01:15.1]} 28.
Bf1 {[%clk 0:01:42]} 28... exd4 {[%clk 0:01:11.4]} 29. cxd4 {[%clk 0:01:42.9]}
29... Rb4 {[%clk 0:01:11.3]} 30. f3 {[%clk 0:01:39.7]} 30... Bg6 {[%clk
0:01:03.8]} 31. Ra8+ {[%clk 0:01:18.6]} 31... Nf8 {[%clk 0:00:54.1]} 32. Rc8
{[%clk 0:00:57.6]} 32... Rxd4 {[%clk 0:00:51.7]} 33. Rxc6 {[%clk 0:00:57.8]}
33... Kg7 {[%clk 0:00:50.6]} 34. Kf2 {[%clk 0:00:55.1]} 34... Nd7 {[%clk
0:00:45.4]} 35. Ke3 {[%clk 0:00:53]} 35... Rd1 {[%clk 0:00:43.2]} 36. Be2 {[%clk
0:00:52.6]} 36... Rh1 {[%clk 0:00:41.7]} 37. Nxg6 {[%clk 0:00:48.1]} 37... Kxg6
{[%clk 0:00:40.5]} 38. Rd6 {[%clk 0:00:29.5]} 38... Ne5 {[%clk 0:00:36.8]} 39.
Rxd5 {[%clk 0:00:28.5]} 39... Rxh3 {[%clk 0:00:36.8]} 40. Ke4 {[%clk 0:00:23.8]}
40... Rh4 {[%clk 0:00:32.5]} 41. Ke3 {[%clk 0:00:18.7]} 41... Rh3 {[%clk
0:00:32.4]} 42. Kf2 {[%clk 0:00:18.3]} 42... Rh2+ {[%clk 0:00:32.1]} 43. Ke3
{[%clk 0:00:18.2]} 43... Nc6 {[%clk 0:00:24.7]} 44. Rc5 {[%clk 0:00:17.4]} 44...
Ne5 {[%clk 0:00:24.1]} 45. f4 {[%clk 0:00:17.3]} 45... Rh3+ {[%clk 0:00:22.6]}
46. Ke4 {[%clk 0:00:17.3]} 46... Nd7 {[%clk 0:00:20.9]} 47. Rc7 {[%clk
0:00:17.1]} 47... Nf8 {[%clk 0:00:18.8]} 48. Bc4 {[%clk 0:00:16.2]} 48... Rh1
{[%clk 0:00:07.1]} 49. Bxf7+ {[%clk 0:00:15.4]} 49... Kg7 {[%clk 0:00:07.4]} 50.
Bh5+ {[%clk 0:00:15.1]} 50... Kg8 {[%clk 0:00:07.2]} 51. Kf5 {[%clk 0:00:15.6]}
51... Rf1 {[%clk 0:00:06.8]} 52. Rc4 {[%clk 0:00:14.9]} 52... Rf2 {[%clk
0:00:06.7]} 53. Kxf6 {[%clk 0:00:14]} 53... Nd7+ {[%clk 0:00:06.3]} 54. Kg6
{[%clk 0:00:13.6]} 54... Nf8+ {[%clk 0:00:04.7]} 55. Kxh6 {[%clk 0:00:13.6]}
55... Ne6 {[%clk 0:00:02.4]} 56. f5 {[%clk 0:00:13.6]} 1-0

[Event "*** Titled Tuesday Blitz"]
[Site "Chess.com"]
[Date "2020.04.14"]
[Round "9"]
[White "K1TTYGANG"]
[Black "DDTerziev04"]
[Result "1/2-1/2"]
[WhiteElo "2137"]
[BlackElo "2265"]
[TimeControl "180+1"]
[EndTime "11:43:54 PDT"]
[Termination "Game drawn by agreement"]

1. c4 {[%clk 0:03:00.9]} 1... e5 {[%clk 0:02:58.9]} 2. Nc3 {[%clk 0:03:00.9]}
2... Nf6 {[%clk 0:02:54]} 3. g3 {[%clk 0:03:01]} 3... Bb4 {[%clk 0:02:53.2]} 4.
Bg2 {[%clk 0:03:00.1]} 4... Bxc3 {[%clk 0:02:52.9]} 5. bxc3 {[%clk 0:03:00.1]}
5... c6 {[%clk 0:02:52.2]} 6. d4 {[%clk 0:02:59.9]} 6... e4 {[%clk 0:02:48.6]}
7. Ba3 {[%clk 0:02:58.5]} 7... d6 {[%clk 0:02:47.5]} 8. Qc2 {[%clk 0:02:55.3]}
8... Bf5 {[%clk 0:02:45.1]} 9. e3 {[%clk 0:02:55.3]} 9... O-O {[%clk 0:02:43]}
10. Ne2 {[%clk 0:02:52.8]} 10... Re8 {[%clk 0:02:40.1]} 11. O-O {[%clk
0:02:50.5]} 11... d5 {[%clk 0:02:37.2]} 12. cxd5 {[%clk 0:02:48.5]} 12... cxd5
{[%clk 0:02:36.4]} 13. c4 {[%clk 0:02:40.8]} 13... Nbd7 {[%clk 0:02:27.8]} 14.
cxd5 {[%clk 0:02:35.5]} 14... Nxd5 {[%clk 0:02:28.7]} 15. Qb3 {[%clk 0:02:33.2]}
15... N7b6 {[%clk 0:02:26.3]} 16. Rac1 {[%clk 0:02:33.2]} 16... Qd7 {[%clk
0:02:21.9]} 17. Rc5 {[%clk 0:02:07.3]} 17... Rac8 {[%clk 0:02:19.9]} 18. Rfc1
{[%clk 0:02:06.1]} 18... Bg4 {[%clk 0:02:17]} 19. Nc3 {[%clk 0:01:54.2]} 19...
Nxc3 {[%clk 0:02:13.7]} 20. R1xc3 {[%clk 0:01:52.7]} 20... Bf3 {[%clk
0:02:12.8]} 21. Qc2 {[%clk 0:01:32.6]} 21... Rxc5 {[%clk 0:02:03.3]} 22. Rxc5
{[%clk 0:01:32.2]} 22... Bxg2 {[%clk 0:01:49.3]} 23. Kxg2 {[%clk 0:01:32.1]}
23... Nd5 {[%clk 0:01:45]} 24. Qb3 {[%clk 0:01:27.6]} 24... Rd8 {[%clk
0:01:41.8]} 25. h3 {[%clk 0:01:05.9]} 25... b6 {[%clk 0:01:41]} 26. Rc2 {[%clk
0:00:55.8]} 26... Qf5 {[%clk 0:01:34.5]} 27. Rc1 {[%clk 0:00:45.3]} 27... h5
{[%clk 0:01:31.3]} 28. Qd1 {[%clk 0:00:42.2]} 28... g6 {[%clk 0:01:22.3]} 29.
Rc6 {[%clk 0:00:34.6]} 29... Rc8 {[%clk 0:01:16.5]} 30. Rxc8+ {[%clk 0:00:22.7]}
30... Qxc8 {[%clk 0:01:17.4]} 31. Qc1 {[%clk 0:00:23]} 31... Qxc1 {[%clk
0:01:15.7]} 32. Bxc1 {[%clk 0:00:22.8]} 32... Kf8 {[%clk 0:01:12.7]} 33. f3
{[%clk 0:00:23.2]} 33... f5 {[%clk 0:01:11.6]} 34. g4 {[%clk 0:00:23.4]} 34...
hxg4 {[%clk 0:00:53.5]} 35. hxg4 {[%clk 0:00:15.2]} 35... Kf7 {[%clk 0:00:47.3]}
36. fxe4 {[%clk 0:00:14.3]} 36... fxe4 {[%clk 0:00:46]} 37. Kf2 {[%clk
0:00:13.1]} 37... g5 {[%clk 0:00:44.6]} 38. Ba3 {[%clk 0:00:13.1]} 38... Ke6
{[%clk 0:00:39.9]} 39. Bf8 {[%clk 0:00:11.7]} 39... Nf6 {[%clk 0:00:25.9]} 40.
Kg3 {[%clk 0:00:10.4]} 40... Kd5 {[%clk 0:00:23.1]} 41. Be7 {[%clk 0:00:09.8]}
41... Nh7 {[%clk 0:00:19.6]} 42. Kf2 {[%clk 0:00:10.2]} 42... Ke6 {[%clk
0:00:19.4]} 43. Bd8 {[%clk 0:00:09.4]} 43... Kd7 {[%clk 0:00:19.1]} 44. Bxg5
{[%clk 0:00:05.5]} 44... Nxg5 {[%clk 0:00:18.4]} 45. Kg3 {[%clk 0:00:06.4]}
45... Ke6 {[%clk 0:00:17.5]} 46. Kf4 {[%clk 0:00:07]} 46... Kf6 {[%clk
0:00:17.5]} 47. d5 {[%clk 0:00:07.7]} 47... b5 {[%clk 0:00:04.8]} 48. a3 {[%clk
0:00:07]} 48... a5 {[%clk 0:00:04.1]} 49. d6 {[%clk 0:00:07.5]} 49... Nf7 {[%clk
0:00:03.8]} 50. Kxe4 {[%clk 0:00:07.8]} 50... Nxd6+ {[%clk 0:00:03.3]} 51. Kd5
{[%clk 0:00:08.5]} 51... Nc4 {[%clk 0:00:03.3]} 52. a4 {[%clk 0:00:07.7]} 52...
Nxe3+ {[%clk 0:00:02.1]} 53. Ke4 {[%clk 0:00:08.2]} 53... bxa4 {[%clk
0:00:02.1]} 54. Kxe3 {[%clk 0:00:08.7]} 54... Kg5 {[%clk 0:00:01.8]} 55. Kd3
{[%clk 0:00:08.8]} 55... Kxg4 {[%clk 0:00:02.2]} 56. Kc3 {[%clk 0:00:09.3]}
56... Kf4 {[%clk 0:00:01.8]} 57. Kb2 {[%clk 0:00:09.9]} 57... Ke4 {[%clk
0:00:02.2]} 58. Ka3 {[%clk 0:00:10.8]} 58... Kd4 {[%clk 0:00:01.1]} 1/2-1/2

[Event "*** Titled Tuesday Blitz"]
[Site "Chess.com"]
[Date "2020.04.14"]
[Round "9"]
[White "FrogMist"]
[Black "mirciulica14"]
[Result "1-0"]
[WhiteElo "2488"]
[BlackElo "2596"]
[TimeControl "180+1"]
[EndTime "11:43:55 PDT"]
[Termination "FrogMist won by checkmate"]

1. e4 {[%clk 0:03:00.9]} 1... e5 {[%clk 0:02:59.2]} 2. Nf3 {[%clk 0:03:00.8]}
2... Nc6 {[%clk 0:02:59.4]} 3. Bb5 {[%clk 0:03:01.4]} 3... a6 {[%clk 0:03:00]}
4. Ba4 {[%clk 0:03:01.8]} 4... Nf6 {[%clk 0:03:00.2]} 5. O-O {[%clk 0:03:02]}
5... b5 {[%clk 0:03:01]} 6. Bb3 {[%clk 0:03:01.8]} 6... Bc5 {[%clk 0:03:01.9]}
7. d3 {[%clk 0:02:57.4]} 7... d6 {[%clk 0:03:02.1]} 8. a3 {[%clk 0:02:52.5]}
8... h6 {[%clk 0:02:58.2]} 9. Nc3 {[%clk 0:02:51]} 9... Rb8 {[%clk 0:02:53.3]}
10. Be3 {[%clk 0:02:40.8]} 10... O-O {[%clk 0:02:34.8]} 11. h3 {[%clk
0:02:16.3]} 11... Nd4 {[%clk 0:01:54.9]} 12. Bxd4 {[%clk 0:02:11]} 12... Bxd4
{[%clk 0:01:48.4]} 13. Nxd4 {[%clk 0:02:11.1]} 13... exd4 {[%clk 0:01:49.3]} 14.
Ne2 {[%clk 0:02:09.3]} 14... c5 {[%clk 0:01:48.2]} 15. Ng3 {[%clk 0:01:53.7]}
15... Be6 {[%clk 0:01:27.4]} 16. f4 {[%clk 0:01:36.4]} 16... c4 {[%clk
0:00:43.9]} 17. Ba2 {[%clk 0:01:33.9]} 17... c3 {[%clk 0:00:44]} 18. b4 {[%clk
0:01:06.9]} 18... Bxa2 {[%clk 0:00:43]} 19. Rxa2 {[%clk 0:01:07.8]} 19... a5
{[%clk 0:00:43.1]} 20. Nf5 {[%clk 0:01:01]} 20... Ra8 {[%clk 0:00:29.5]} 21. Ra1
{[%clk 0:00:35]} 21... Qb6 {[%clk 0:00:19.3]} 22. Qf3 {[%clk 0:00:34.7]} 22...
axb4 {[%clk 0:00:17]} 23. axb4 {[%clk 0:00:34.9]} 23... Ra4 {[%clk 0:00:17.8]}
24. Rab1 {[%clk 0:00:31.4]} 24... Kh7 {[%clk 0:00:13.4]} 25. Qf2 {[%clk
0:00:30]} 25... Rb8 {[%clk 0:00:05.1]} 26. Nxd4 {[%clk 0:00:26.8]} 26... Ra2
{[%clk 0:00:02.8]} 27. Rb3 {[%clk 0:00:23.8]} 27... Rc8 {[%clk 0:00:01.8]} 28.
Kh2 {[%clk 0:00:13.7]} 28... Nd7 {[%clk 0:00:01.4]} 29. Nf5 {[%clk 0:00:11.7]}
29... Qxf2 {[%clk 0:00:01.4]} 30. Rxf2 {[%clk 0:00:12.6]} 30... Rb2 {[%clk
0:00:02]} 31. Nd4 {[%clk 0:00:10.6]} 31... Rxb3 {[%clk 0:00:01.3]} 32. Nxb3
{[%clk 0:00:11.5]} 32... Ra8 {[%clk 0:00:01.9]} 33. Na5 {[%clk 0:00:11.7]} 33...
Nb6 {[%clk 0:00:01.8]} 34. Rf3 {[%clk 0:00:11.6]} 34... Na4 {[%clk 0:00:02.3]}
35. d4 {[%clk 0:00:11.6]} 35... Re8 {[%clk 0:00:03.1]} 36. e5 {[%clk 0:00:11.3]}
36... dxe5 {[%clk 0:00:04]} 37. fxe5 {[%clk 0:00:12.1]} 37... Rd8 {[%clk
0:00:04.7]} 38. Rd3 {[%clk 0:00:12.7]} 38... Nb2 {[%clk 0:00:04.9]} 39. Rxc3
{[%clk 0:00:12.3]} 39... Rxd4 {[%clk 0:00:05.5]} 40. Nc6 {[%clk 0:00:12.6]}
40... Rd2 {[%clk 0:00:04.7]} 41. Na7 {[%clk 0:00:11.6]} 41... Nc4 {[%clk
0:00:05.2]} 42. Nxb5 {[%clk 0:00:11.6]} 42... Nxe5 {[%clk 0:00:05.9]} 43. Nc7
{[%clk 0:00:11.9]} 43... Kg6 {[%clk 0:00:05]} 44. b5 {[%clk 0:00:12.4]} 44...
Rd6 {[%clk 0:00:05.3]} 45. Rb3 {[%clk 0:00:11.9]} 45... Rb6 {[%clk 0:00:05.6]}
46. Nd5 {[%clk 0:00:11.9]} 46... Rb8 {[%clk 0:00:06]} 47. Ne3 {[%clk 0:00:12.2]}
47... Nd7 {[%clk 0:00:05.8]} 48. c4 {[%clk 0:00:12.3]} 48... Kf6 {[%clk
0:00:06.3]} 49. Nd5+ {[%clk 0:00:11.8]} 49... Ke5 {[%clk 0:00:06.5]} 50. Nc7
{[%clk 0:00:11.2]} 50... Kd6 {[%clk 0:00:05.6]} 51. Na6 {[%clk 0:00:11.6]} 51...
Ra8 {[%clk 0:00:06.1]} 52. Rd3+ {[%clk 0:00:12]} 52... Ke7 {[%clk 0:00:05.9]}
53. c5 {[%clk 0:00:11.8]} 53... Ke6 {[%clk 0:00:02.6]} 54. c6 {[%clk 0:00:11.8]}
54... Nb6 {[%clk 0:00:02.8]} 55. Nc7+ {[%clk 0:00:12]} 55... Ke5 {[%clk
0:00:02.7]} 56. Nxa8 {[%clk 0:00:12.9]} 56... Nxa8 {[%clk 0:00:03.2]} 57. Rd7
{[%clk 0:00:13.1]} 57... f6 {[%clk 0:00:03.6]} 58. Rb7 {[%clk 0:00:13.4]} 58...
Nc7 {[%clk 0:00:04.5]} 59. Rxc7 {[%clk 0:00:13.4]} 59... Kd6 {[%clk 0:00:04.6]}
60. Rxg7 {[%clk 0:00:13.9]} 60... Ke5 {[%clk 0:00:05.5]} 61. Rg6 {[%clk
0:00:14.4]} 61... Kd6 {[%clk 0:00:06.4]} 62. Rxh6 {[%clk 0:00:14.9]} 62... Kc5
{[%clk 0:00:07.3]} 63. Rxf6 {[%clk 0:00:15.2]} 63... Kxb5 {[%clk 0:00:08.2]} 64.
c7 {[%clk 0:00:15.7]} 64... Kc5 {[%clk 0:00:08.2]} 65. c8=Q+ {[%clk 0:00:16.3]}
65... Kb4 {[%clk 0:00:09.1]} 66. Rb6+ {[%clk 0:00:16.3]} 66... Ka5 {[%clk
0:00:09.1]} 67. Qa6# {[%clk 0:00:17.2]} 1-0